fUST/lending_fUST_20241113
["ID","MTS","AMOUNT","RATE_DAILY","PERIOD"]
[342153414,1731511850138,-500.0,0.00020547,2]
[342153415,1731511850150,-1169.09,0.00020547,2]
[342153416,1731511850159,-500.0,0.00020547,2]
[342153417,1731511850168,-500.0,0.00020547,2]
[342153418,1731511850178,-736.71,0.00020547,2]
[342153419,1731511850187,-555.66156574,0.00020547,2]
[342153420,1731511850196,-500.0,0.00020547,2]
[342153421,1731511850206,-500.0,0.00020547,2]
[342153422,1731511850215,-502.30864534,0.00020547,2]
[342153423,1731511850224,-710.06,0.00020547,2]
[342153424,1731511850234,-500.0,0.00020547,2]
[342153425,1731511850245,-500.0,0.00020547,2]
[342153426,1731511850255,-1628.54,0.00020547,2]
[342153427,1731511850266,-500.0,0.00020547,2]
[342153428,1731511850275,-1645.99,0.00020547,2]
[342153429,1731511850285,-426.12910175,0.00020547,2]
[342153430,1731511850297,-500.0,0.00020547,2]
[342153431,1731511850307,-500.0,0.00020547,2]
[342153432,1731511850317,-590.92,0.00020547,2]
[342153433,1731511850327,-500.0,0.00020547,2]
[342153434,1731511850338,-5460.95,0.00020547,2]
[342153435,1731511850348,-310.42344095,0.0002074,2]
[342153436,1731511850357,-607.55963618,0.00020795,2]
[342153437,1731511850367,-646.97395301,0.00020821,2]
[342153438,1731511850377,-500.0,0.00020821,2]
[342153439,1731511850387,-739.12,0.00020821,2]
[342153440,1731511850396,-237.64,0.00020821,2]
[342153441,1731511850405,-500.0,0.00020821,2]
[342153442,1731511850415,-500.0,0.00020821,2]
[342153443,1731511850425,-673.24,0.00020821,2]
[342153444,1731511850434,-500.0,0.00020821,2]
[342153445,1731511850444,-500.0,0.00020821,2]
[342153446,1731511850453,-287.09779336,0.00020821,2]
[342153447,1731511850463,-500.0,0.00020821,2]
[342153448,1731511850472,-500.0,0.00020821,2]
[342153449,1731511850481,-526.0262757,0.00020821,2]
[342153450,1731511850490,-1336.73,0.00020821,2]
[342153451,1731511850500,-500.0,0.00020821,2]
[342153452,1731511850509,-500.0,0.00020821,2]
[342153453,1731511850518,-759.69,0.00020821,2]
[342153454,1731511850527,-500.0,0.00020821,2]
[342153455,1731511850537,-612.83,0.00020821,2]
[342153456,1731511850547,-564.34,0.00020821,2]
[342153457,1731511850556,-500.0,0.00020821,2]
[342153458,1731511850573,-500.0,0.00020821,2]
[342153459,1731511850589,-1169.09,0.00020821,2]
[342153460,1731511850603,-218.06,0.00020821,2]
[342153461,1731511850614,-500.0,0.00020821,2]
[342153462,1731511850628,-736.71,0.00020821,2]
[342153463,1731511850642,-197.49,0.00020821,2]
[342153464,1731511850658,-500.0,0.00020821,2]
[342153465,1731511850675,-710.06,0.00020821,2]
[342153466,1731511850686,-472.6737579,0.00020821,2]
[342153467,1731511850701,-359.01129523,0.00020821,2]
[342153468,1731511850714,-1628.54,0.00020821,2]
[342153469,1731511850728,-500.0,0.00020821,2]
[342153470,1731511850740,-1645.99,0.00020821,2]
[342153471,1731511850754,-500.0,0.00020821,2]
[342153472,1731511850767,-500.0,0.00020821,2]
[342153473,1731511850781,-500.0,0.00020821,2]
[342153474,1731511850791,-5389.74520575,0.00020821,2]
[342153475,1731511850843,-231.4,0.00019168,3]
[342153476,1731511850860,-500.0,0.00019178,2]
[342153477,1731511850873,-71.20479425,0.00020821,2]
[342153478,1731511850887,-594.13403,0.00020881,2]
[342153479,1731511850903,-587.0,0.00020963,2]
[342153480,1731511850928,-2381.21197982,0.00021,5]
[342153481,1731511850946,-5445.49170417,0.00021,5]
[342153482,1731511850958,-5012.58626224,0.00021,2]
[342153483,1731511850970,-500.0,0.00021095,2]
[342153484,1731511850983,-739.12,0.00021095,2]
[342153485,1731511850997,-500.0,0.00021095,2]
[342153486,1731511851011,-500.0,0.00021095,2]
[342153487,1731511851022,-673.24,0.00021095,2]
[342153488,1731511851033,-500.0,0.00021095,2]
[342153489,1731511851045,-500.0,0.00021095,2]
[342153490,1731511851057,-500.0,0.00021095,2]
[342153491,1731511851070,-1336.73,0.00021095,2]
[342153492,1731511851081,-500.0,0.00021095,2]
[342153493,1731511851093,-469.89231322,0.00021095,2]
[342153494,1731511851107,-30.10768678,0.00021095,2]
[342153495,1731511851119,-759.69,0.00021095,2]
[342153496,1731511851130,-500.0,0.00021095,2]
[342153497,1731511851142,-612.83,0.00021095,2]
[342153498,1731511851154,-500.0,0.00021095,2]
[342153499,1731511851165,-500.0,0.00021095,2]
[342153500,1731511851176,-1169.09,0.00021095,2]
[342153501,1731511851188,-507.28,0.00021095,2]
[342153502,1731511851200,-455.82446168,0.00021095,2]
[342153503,1731511851265,-500.0,0.00019178,2]
[342153504,1731511851277,-500.0,0.00019178,2]
[342153505,1731511851288,-462.8,0.00020538,3]
[342153506,1731511851302,-280.88553832,0.00021095,2]
[342153507,1731511851315,-500.0,0.00021095,2]
[342153508,1731511851327,-710.06,0.00021095,2]
[342153509,1731511851338,-1628.54,0.00021095,2]
[342153510,1731511851351,-500.0,0.00021095,2]
[342153511,1731511851362,-1645.99,0.00021095,2]
[342153512,1731511851374,-500.0,0.00021095,2]
[342153513,1731511851388,-500.0,0.00021095,2]
[342153514,1731511851400,-500.0,0.00021095,2]
[342153515,1731511851426,-5460.95,0.00021095,2]
[342153516,1731511851436,-594.13403,0.00021142,2]
[342153517,1731511851446,-509.81613626,0.000212,2]
[342153518,1731511851455,-500.0,0.00021369,2]
[342153519,1731511851465,-739.12,0.00021369,2]
[342153520,1731511851475,-500.0,0.00021369,2]
[342153521,1731511851484,-361.0294937,0.00021369,2]
[342153522,1731511851493,-673.24,0.00021369,2]
[342153523,1731511851502,-500.0,0.00021369,2]
[342153524,1731511851513,-500.0,0.00021369,2]
[342153525,1731511851523,-500.0,0.00021369,2]
[342153526,1731511851533,-1336.73,0.00021369,2]
[342153527,1731511851543,-500.0,0.00021369,2]
[342153528,1731511851552,-500.0,0.00021369,2]
[342153529,1731511851562,-759.69,0.00021369,2]
[342153530,1731511851572,-500.0,0.00021369,2]
[342153531,1731511851581,-612.83,0.00021369,2]
[342153532,1731511851591,-500.0,0.00021369,2]
[342153533,1731511851600,-500.0,0.00021369,2]
[342153534,1731511851610,-1169.09,0.00021369,2]
[342153535,1731511851620,-736.71,0.00021369,2]
[342153536,1731511851630,-500.0,0.00021369,2]
[342153537,1731511851639,-710.06,0.00021369,2]
[342153538,1731511851649,-1628.54,0.00021369,2]
[342153539,1731511851660,-500.0,0.00021369,2]
[342153540,1731511851669,-1645.99,0.00021369,2]
[342153541,1731511851683,-500.0,0.00021369,2]
[342153542,1731511851694,-278.34,0.00021369,2]
[342153543,1731511851703,-500.0,0.00021369,2]
[342153544,1731511851713,-5460.95,0.00021369,2]
[342153545,1731511851890,-594.13403,0.00021403,2]
[342153546,1731511851923,-1500.0,0.00021522,2]
[342153547,1731511851944,-500.0,0.00021643,2]
[342153548,1731511851954,-739.12,0.00021643,2]
[342153549,1731511851964,-500.0,0.00021643,2]
[342153550,1731511851974,-673.24,0.00021643,2]
[342153551,1731511851984,-500.0,0.00021643,2]
[342153552,1731511851993,-500.0,0.00021643,2]
[342153553,1731511852003,-500.0,0.00021643,2]
[342153554,1731511852012,-1336.73,0.00021643,2]
[342153555,1731511852022,-500.0,0.00021643,2]
[342153556,1731511852031,-500.0,0.00021643,2]
[342153557,1731511852040,-759.69,0.00021643,2]
[342153558,1731511852050,-500.0,0.00021643,2]
[342153559,1731511852059,-612.83,0.00021643,2]
[342153560,1731511852068,-500.0,0.00021643,2]
[342153561,1731511852078,-500.0,0.00021643,2]
[342153562,1731511852088,-1169.09,0.00021643,2]
[342153563,1731511852097,-736.71,0.00021643,2]
[342153564,1731511852107,-500.0,0.00021643,2]
[342153565,1731511852116,-710.06,0.00021643,2]
[342153566,1731511852126,-1628.54,0.00021643,2]
[342153567,1731511852136,-500.0,0.00021643,2]
[342153568,1731511852146,-1645.99,0.00021643,2]
[342153569,1731511852156,-307.42,0.00021643,2]
[342153570,1731511852165,-500.0,0.00021643,2]
[342153571,1731511852175,-5460.95,0.00021643,2]
[342153572,1731511852185,-594.13403,0.00021664,2]
[342153573,1731511852195,-3000.0,0.000218,2]
[342153574,1731511852204,-123216.2717091,0.000218,10]
[342153575,1731511852214,-3000.0,0.0002181,2]
[342153576,1731511852224,-3000.0,0.0002182,2]
[342153577,1731511852234,-3000.0,0.0002183,2]
[342153578,1731511852244,-3000.0,0.0002184,2]
[342153579,1731511852254,-3000.0,0.0002185,2]
[342153580,1731511852263,-3000.0,0.0002186,2]
[342153581,1731511852272,-3000.0,0.0002187,2]
[342153582,1731511852282,-3000.0,0.0002188,2]
[342153583,1731511852291,-3000.0,0.0002189,2]
[342153584,1731511852305,-1210.25,0.000219,2]
[342153585,1731511852315,-3000.0,0.000219,2]
[342153586,1731511852326,-3000.0,0.0002191,2]
[342153587,1731511852335,-500.0,0.00021917,2]
[342153588,1731511852346,-739.12,0.00021917,2]
[342153589,1731511852356,-500.22,0.00021917,2]
[342153590,1731511852365,-673.24,0.00021917,2]
[342153591,1731511852375,-500.0,0.00021917,2]
[342153592,1731511852387,-2336.0,0.00021917,2]
[342153593,1731511852397,-1085.19716748,0.00021917,2]
[342153594,1731511852410,-500.0,0.00021917,2]
[342153595,1731511852423,-500.0,0.00021917,2]
[342153596,1731511852438,-1336.73,0.00021917,2]
[342153597,1731511852448,-500.0,0.00021917,2]
[342153598,1731511852458,-500.0,0.00021917,2]
[342153599,1731511852467,-759.69,0.00021917,2]
[342153600,1731511852476,-500.0,0.00021917,2]
[342153601,1731511852486,-612.83,0.00021917,2]
[342153602,1731511852495,-500.0,0.00021917,2]
[342153603,1731511852505,-500.0,0.00021917,2]
[342153604,1731511852514,-1169.09,0.00021917,2]
[342153605,1731511852523,-736.71,0.00021917,2]
[342153606,1731511852533,-500.0,0.00021917,2]
[342153607,1731511852542,-500.0,0.00021917,2]
[342153608,1731511852551,-710.06,0.00021917,2]
[342153609,1731511852560,-1628.54,0.00021917,2]
[342153610,1731511852571,-500.0,0.00021917,2]
[342153611,1731511852580,-1645.99,0.00021917,2]
[342153612,1731511852589,-438.89216279,0.00021917,2]
[342153613,1731511852598,-5460.95,0.00021917,2]
[342153614,1731511852609,-263.44917642,0.00021918,2]
[342153615,1731511852619,-3000.0,0.0002192,2]
[342153616,1731511852628,-594.13403,0.00021925,2]
[342153617,1731511852638,-3000.0,0.0002193,2]
[342153618,1731511852647,-3000.0,0.0002194,2]
[342153619,1731511852657,-3000.0,0.0002195,2]
[342153620,1731511852666,-3000.0,0.0002196,2]
[342153621,1731511852675,-607.55963618,0.00021965,2]
[342153622,1731511852685,-500.0,0.00021967,2]
[342153623,1731511852695,-3000.0,0.0002197,2]
[342153624,1731511852704,-3000.0,0.0002198,2]
[342153625,1731511852713,-4092.756315,0.0002199,2]
[342153626,1731511852723,-202.0,0.00022,2]
[342153627,1731511852733,-75687.53929562,0.00022,30]
[342153628,1731511852743,-23590.52830046,0.00022,2]
[342153629,1731511852753,-813.2026093,0.00022,3]
[342153630,1731511852763,-12078.52524984,0.0002201,16]
[342153631,1731511852773,-500.0,0.00022191,2]
[342153632,1731511852782,-739.12,0.00022191,2]
[342153633,1731511852793,-673.24,0.00022191,2]
[342153634,1731511852802,-500.0,0.00022191,2]
[342153635,1731511852813,-500.0,0.00022191,2]
[342153636,1731511852823,-500.0,0.00022191,2]
[342153637,1731511852832,-1336.73,0.00022191,2]
[342153638,1731511852842,-500.0,0.00022191,2]
[342153639,1731511852852,-378.87900493,0.00022191,2]
[342153640,1731511852861,-759.69,0.00022191,2]
[342153641,1731511852871,-500.0,0.00022191,2]
[342153642,1731511852881,-612.83,0.00022191,2]
[342153643,1731511852891,-500.0,0.00022191,2]
[342153644,1731511852900,-285.82,0.00022191,2]
[342153645,1731511852914,-1169.09,0.00022191,2]
[342153646,1731511852924,-736.71,0.00022191,2]
[342153647,1731511852939,-500.0,0.00022191,2]
[342153648,1731511852949,-597.5344945,0.00022191,2]
[342153660,1731512117112,500.0,0.00027,60]
[342153663,1731512135384,500.0,0.00027,60]
[342153664,1731512149575,1000.0,0.00027,120]
[342153665,1731512152409,500.0,0.00027,60]
[342153666,1731512172149,250.0,0.00027,60]
[342153667,1731512237887,250.0,0.00027,60]
[342153672,1731512379586,1000.0,0.00027,60]
[342153685,1731512643232,596.29,0.00027,60]
[342153686,1731512669784,1788.85,0.00027,60]
[342153694,1731512785674,-300.0,0.00019177,2]
[342153695,1731512785696,-992.06607372,0.00019178,2]
[342153696,1731512785719,-500.0,0.00019178,2]
[342153697,1731512785741,-500.0,0.00019178,2]
[342153698,1731512785763,-500.0,0.00019178,2]
[342153699,1731512785784,-511.23845635,0.00019178,2]
[342153700,1731512785806,-500.0,0.00019178,2]
[342153701,1731512785828,-505.15260685,0.00019178,2]
[342153702,1731512785854,-500.0,0.00019178,2]
[342153703,1731512785875,-600.49410312,0.00019178,2]
[342153704,1731512785896,-500.0,0.00019178,2]
[342153705,1731512785916,-500.0,0.00019178,2]
[342153706,1731512785937,-500.0,0.00019178,2]
[342153707,1731512785958,-500.0,0.00019178,2]
[342153708,1731512785980,-500.0,0.00019178,2]
[342153709,1731512786001,-500.0,0.00019178,2]
[342153710,1731512786022,-500.0,0.00019178,2]
[342153711,1731512786043,-500.17207405,0.00019178,2]
[342153712,1731512786064,-500.0,0.00019178,2]
[342153713,1731512786084,-500.0,0.00019178,2]
[342153714,1731512786111,-159.83847379,0.00019178,2]
[342153715,1731512786132,-500.0,0.00019178,2]
[342153716,1731512786153,-500.0,0.00019178,2]
[342153717,1731512786175,-500.0,0.00019178,2]
[342153718,1731512786198,-500.0,0.00019178,2]
[342153719,1731512786221,-500.0,0.00019178,2]
[342153720,1731512786242,-500.0,0.00019178,2]
[342153721,1731512786263,-500.0,0.00019178,2]
[342153722,1731512786285,-500.0,0.00019178,2]
[342153723,1731512786306,-500.0,0.00019178,2]
[342153724,1731512786327,-500.0,0.00019178,2]
[342153725,1731512786353,-500.0,0.00019178,2]
[342153726,1731512786375,-500.0,0.00019178,2]
[342153727,1731512786396,-500.0,0.00019178,2]
[342153728,1731512786417,-500.0,0.00019178,2]
[342153729,1731512786439,-500.0,0.00019178,2]
[342153730,1731512786460,-500.0,0.00019178,2]
[342153731,1731512786481,-500.0,0.00019178,2]
[342153732,1731512786504,-500.0,0.00019178,2]
[342153733,1731512786526,-500.0,0.00019178,2]
[342153734,1731512786547,-500.0,0.00019178,2]
[342153735,1731512786569,-500.0,0.00019178,2]
[342153736,1731512786591,-500.0,0.00019178,2]
[342153737,1731512786617,-500.0,0.00019178,2]
[342153738,1731512786640,-500.0,0.00019178,2]
[342153739,1731512786666,-500.0,0.00019178,2]
[342153740,1731512786689,-502.89187502,0.00019178,2]
[342153741,1731512786711,-500.0,0.00019178,2]
[342153742,1731512786734,-500.0,0.00019178,2]
[342153743,1731512786756,-549.58828499,0.00019178,2]
[342153744,1731512786777,-361.53,0.00019178,2]
[342153745,1731512786799,-500.0,0.00019178,2]
[342153746,1731512786821,-500.0,0.00019178,2]
[342153747,1731512786843,-500.0,0.00019178,2]
[342153748,1731512786869,-500.0,0.00019178,2]
[342153749,1731512786891,-500.0,0.00019178,2]
[342153750,1731512786913,-500.0,0.00019178,2]
[342153751,1731512786936,-500.0,0.00019178,2]
[342153752,1731512786958,-500.0,0.00019178,2]
[342153753,1731512786981,-500.0,0.00019178,2]
[342153754,1731512787003,-500.0,0.00019178,2]
[342153755,1731512787026,-500.0,0.00019178,2]
[342153756,1731512787048,-500.0,0.00019178,2]
[342153757,1731512787070,-500.0,0.00019178,2]
[342153758,1731512787091,-500.0,0.00019178,2]
[342153759,1731512787118,-500.0,0.00019178,2]
[342153760,1731512787139,-500.0,0.00019178,2]
[342153761,1731512787162,-500.0,0.00019178,2]
[342153762,1731512787184,-564.96791943,0.00019178,2]
[342153763,1731512787206,-500.0,0.00019178,2]
[342153764,1731512787228,-500.0,0.00019178,2]
[342153765,1731512787250,-500.0,0.00019178,2]
[342153766,1731512787271,-500.0,0.00019178,2]
[342153767,1731512787408,-500.0,0.00019178,2]
[342153768,1731512787434,-500.0,0.00019178,2]
[342153769,1731512787456,-500.0,0.00019178,2]
[342153770,1731512787478,-500.0,0.00019178,2]
[342153771,1731512787500,-500.0,0.00019178,2]
[342153772,1731512787522,-500.0,0.00019178,2]
[342153773,1731512787543,-500.0,0.00019178,2]
[342153774,1731512787565,-500.0,0.00019178,2]
[342153775,1731512787586,-500.0,0.00019178,2]
[342153776,1731512787611,-500.0,0.00019178,2]
[342153777,1731512787637,-500.0,0.00019178,2]
[342153778,1731512787658,-366.81,0.00019178,2]
[342153779,1731512787684,-500.0,0.00019178,2]
[342153780,1731512787707,-500.0,0.00019178,2]
[342153781,1731512787728,-500.0,0.00019178,2]
[342153782,1731512787749,-500.0,0.00019178,2]
[342153783,1731512787771,-500.0,0.00019178,2]
[342153784,1731512787793,-500.0,0.00019178,2]
[342153785,1731512787815,-500.0,0.00019178,2]
[342153786,1731512787835,-571.92271782,0.00019178,2]
[342153787,1731512787861,-506.1484587,0.00019178,2]
[342153788,1731512787883,-500.0,0.00019178,2]
[342153789,1731512787904,-354.17521488,0.00019178,2]
[342153790,1731512787926,-500.0,0.00019178,2]
[342153791,1731512787948,-503.04342508,0.00019178,2]
[342153792,1731512787970,-500.0,0.00019178,2]
[342153793,1731512787991,-500.0,0.00019178,2]
[342153794,1731512788013,-500.0,0.00019178,2]
[342153795,1731512788036,-500.0,0.00019178,2]
[342153796,1731512788058,-500.0,0.00019178,2]
[342153797,1731512788080,-500.0,0.00019178,2]
[342153798,1731512788108,-500.0,0.00019178,2]
[342153799,1731512788131,-500.0,0.00019178,2]
[342153800,1731512788153,-500.0,0.00019178,2]
[342153801,1731512788174,-500.0,0.00019178,2]
[342153802,1731512788196,-500.0,0.00019178,2]
[342153803,1731512788218,-500.0,0.00019178,2]
[342153804,1731512788239,-500.0,0.00019178,2]
[342153805,1731512788263,-500.0,0.00019178,2]
[342153806,1731512788285,-500.0,0.00019178,2]
[342153807,1731512788306,-500.0,0.00019178,2]
[342153808,1731512788328,-500.0,0.00019178,2]
[342153809,1731512788354,-500.0,0.00019178,2]
[342153810,1731512788376,-500.0,0.00019178,2]
[342153811,1731512788397,-500.0,0.00019178,2]
[342153812,1731512788419,-500.0,0.00019178,2]
[342153813,1731512788440,-500.0,0.00019178,2]
[342153814,1731512788461,-500.0,0.00019178,2]
[342153815,1731512788483,-549.94704995,0.00019178,2]
[342153816,1731512788504,-500.0,0.00019178,2]
[342153817,1731512788526,-500.0,0.00019178,2]
[342153818,1731512788548,-500.0,0.00019178,2]
[342153819,1731512788569,-500.0,0.00019178,2]
[342153820,1731512788592,-500.0,0.00019178,2]
[342153821,1731512788618,-500.0,0.00019178,2]
[342153822,1731512788639,-500.0,0.00019178,2]
[342153823,1731512788664,-275.44,0.00019178,2]
[342153824,1731512788686,-500.0,0.00019178,2]
[342153825,1731512788709,-1265.9,0.00019178,2]
[342153826,1731512788731,-314.64398137,0.00019178,2]
[342153827,1731512788756,-500.0,0.00019178,2]
[342153828,1731512788781,-500.0,0.00019178,2]
[342153829,1731512788804,-971.69,0.00019178,2]
[342153830,1731512788827,-516.39048526,0.00019178,2]
[342153831,1731512788852,-536.62295588,0.00019178,2]
[342153832,1731512788873,-500.0,0.00019178,2]
[342153833,1731512788896,-500.0,0.00019178,2]
[342153834,1731512788919,-500.0,0.00019178,2]
[342153835,1731512788941,-500.0,0.00019178,2]
[342153836,1731512788964,-189.81097864,0.00019178,2]
[342153837,1731512788986,-500.0,0.00019178,2]
[342153838,1731512789011,-1757.47,0.00019178,2]
[342153839,1731512789034,-500.0,0.00019178,2]
[342153840,1731512789057,-1289.02,0.00019178,2]
[342153841,1731512789079,-500.0,0.00019178,2]
[342153842,1731512789104,-500.0,0.00019178,2]
[342153843,1731512789126,-500.0,0.00019178,2]
[342153844,1731512789147,-500.0,0.00019178,2]
[342153845,1731512789168,-500.0,0.00019178,2]
[342153846,1731512789191,-500.0,0.00019178,2]
[342153847,1731512789213,-500.0,0.00019178,2]
[342153848,1731512789235,-225.44820054,0.00019178,2]
[342153849,1731512789257,-500.0,0.00019178,2]
[342153850,1731512789280,-500.0,0.00019178,2]
[342153851,1731512789302,-500.0,0.00019178,2]
[342153852,1731512789326,-500.0,0.00019178,2]
[342153853,1731512789348,-500.0,0.00019178,2]
[342153854,1731512789376,-500.0,0.00019178,2]
[342153855,1731512789399,-500.0,0.00019178,2]
[342153856,1731512789421,-500.0,0.00019178,2]
[342153857,1731512789443,-500.0,0.00019178,2]
[342153858,1731512789463,-500.0,0.00019178,2]
[342153859,1731512789485,-521.15,0.00019178,2]
[342153860,1731512789507,-421.2281,0.00019178,2]
[342153861,1731512789528,-1523.09,0.00019178,2]
[342153862,1731512789549,-500.0,0.00019178,2]
[342153863,1731512789574,-500.0,0.00019178,2]
[342153864,1731512789596,-500.0,0.00019178,2]
[342153865,1731512789624,-500.0,0.00019178,2]
[342153866,1731512789648,-4495.36,0.00019178,2]
[342153867,1731512789669,-500.0,0.00019178,2]
[342153868,1731512789690,-250.08,0.00019442,3]
[342153869,1731512789715,-750.28,0.00019442,3]
[342153870,1731512789739,-500.0,0.00019451,2]
[342153871,1731512789761,-500.0,0.00019451,2]
[342153872,1731512789783,-500.0,0.00019452,2]
[342153873,1731512789805,-500.0,0.00019452,2]
[342153874,1731512789828,-500.0,0.00019452,2]
[342153875,1731512789854,-500.0,0.00019452,2]
[342153876,1731512789881,-500.0,0.00019452,2]
[342153877,1731512789904,-500.0,0.00019452,2]
[342153878,1731512789924,-500.0,0.00019452,2]
[342153879,1731512789946,-500.0,0.00019452,2]
[342153880,1731512789968,-500.0,0.00019452,2]
[342153881,1731512789991,-500.0,0.00019452,2]
[342153882,1731512790013,-500.0,0.00019452,2]
[342153883,1731512790036,-500.0,0.00019452,2]
[342153884,1731512790061,-500.0,0.00019452,2]
[342153885,1731512790082,-500.0,0.00019452,2]
[342153886,1731512790107,-500.0,0.00019452,2]
[342153887,1731512790129,-500.0,0.00019452,2]
[342153888,1731512790152,-500.0,0.00019452,2]
[342153889,1731512790177,-500.0,0.00019452,2]
[342153890,1731512790199,-500.0,0.00019452,2]
[342153891,1731512790222,-210.22,0.00019452,2]
[342153892,1731512790244,-500.0,0.00019452,2]
[342153893,1731512790270,-500.0,0.00019452,2]
[342153894,1731512790292,-500.0,0.00019452,2]
[342153895,1731512790315,-500.0,0.00019452,2]
[342153896,1731512790338,-500.0,0.00019452,2]
[342153897,1731512790364,-500.0,0.00019452,2]
[342153898,1731512790387,-500.0,0.00019452,2]
[342153899,1731512790409,-500.0,0.00019452,2]
[342153900,1731512790431,-500.0,0.00019452,2]
[342153901,1731512790454,-500.0,0.00019452,2]
[342153902,1731512790476,-500.0,0.00019452,2]
[342153903,1731512790499,-500.0,0.00019452,2]
[342153904,1731512790523,-500.0,0.00019452,2]
[342153905,1731512790546,-500.0,0.00019452,2]
[342153906,1731512790673,-500.0,0.00019452,2]
[342153907,1731512790697,-500.0,0.00019452,2]
[342153908,1731512790721,-500.0,0.00019452,2]
[342153909,1731512790745,-1265.9,0.00019452,2]
[342153910,1731512790768,-971.69,0.00019452,2]
[342153911,1731512790790,-500.0,0.00019452,2]
[342153912,1731512790814,-500.0,0.00019452,2]
[342153913,1731512790840,-1757.47,0.00019452,2]
[342153914,1731512790866,-1289.02,0.00019452,2]
[342153915,1731512790888,-500.0,0.00019452,2]
[342153916,1731512790910,-500.0,0.00019452,2]
[342153917,1731512790933,-500.0,0.00019452,2]
[342153918,1731512790955,-500.0,0.00019452,2]
[342153919,1731512790977,-522.72781791,0.00019452,2]
[342153920,1731512790999,-500.0,0.00019452,2]
[342153921,1731512791022,-407.06713237,0.00019452,2]
[342153922,1731512791044,-500.0,0.00019452,2]
[342153923,1731512791067,-1523.09,0.00019452,2]
[342153924,1731512791089,-500.0,0.00019452,2]
[342153925,1731512791117,-4495.36,0.00019452,2]
[342153926,1731512791139,-500.0,0.00019726,2]
[342153927,1731512791161,-500.0,0.00019726,2]
[342153928,1731512791185,-284.01,0.00019726,2]
[342153929,1731512791209,-242.72901101,0.00019726,2]
[342153930,1731512791232,-500.0,0.00019726,2]
[342153931,1731512791255,-417.27101565,0.00019726,2]
[342153932,1731512791278,-500.0,0.00019726,2]
[342153933,1731512791301,-568.0,0.00019726,2]
[342153934,1731512791323,-500.0,0.00019726,2]
[342153935,1731512791345,-500.0,0.00019726,2]
[342153936,1731512791373,-500.0,0.00019726,2]
[342153937,1731512791396,-500.0,0.00019726,2]
[342153938,1731512791420,-241.80269184,0.00019726,2]
[342153939,1731512791446,-500.0,0.00019726,2]
[342153940,1731512791472,-500.0,0.00019726,2]
[342153941,1731512791496,-500.0,0.00019726,2]
[342153942,1731512791520,-500.0,0.00019726,2]
[342153943,1731512791545,-1265.9,0.00019726,2]
[342153944,1731512791568,-971.69,0.00019726,2]
[342153945,1731512791591,-863.44089578,0.00019726,2]
[342154045,1731513032925,-300.0,0.00019177,2]
[342154047,1731513032935,-177.57874341,0.00019178,2]
[342154049,1731513032945,-500.0,0.00019178,2]
[342154053,1731513032955,-500.0,0.00019178,2]